fUST/lending_fUST_20240621
["ID","MTS","AMOUNT","RATE_DAILY","PERIOD"]
[330046041,1718967045301,-600.0,0.00051,120]
[330046042,1718967045310,-150.0,0.00051,43]
[330046043,1718967045318,-151.0,0.00051,14]
[330046044,1718967045327,-940.026339,0.00051,14]
[330046045,1718967045336,-940.026339,0.00051,14]
[330046046,1718967045347,-1440.905037,0.00051,14]
[330046047,1718967045358,-1440.905032,0.00051,14]
[330046048,1718967045368,-969.7239761,0.00051129,60]
[330046049,1718967045376,-1000.0,0.00051132,14]
[330046050,1718967045388,-335.3,0.00051145,60]
[330046051,1718967045397,-152.0,0.00051145,60]
[330046052,1718967045407,-934.31504815,0.00051181,60]
[330046053,1718967045416,-3157.88118872,0.000512,120]
[330046054,1718967045427,-3086.639267,0.000512,14]
[330046055,1718967045436,-3086.639272,0.000512,14]
[330046056,1718967045446,-660.996608,0.000512,14]
[330046057,1718967045455,-201.641449,0.000512,14]
[330046058,1718967045465,-660.996608,0.000512,14]
[330046059,1718967045474,-201.641445,0.000512,14]
[330046060,1718967045483,-1137.036381,0.000512,14]
[330046061,1718967045492,-1137.036381,0.000512,14]
[330046062,1718967045503,-934.31504815,0.00051231,60]
[330046063,1718967045513,-1500.0,0.00051232,120]
[330046064,1718967045522,-1376.05250197,0.00051309,60]
[330046065,1718967045531,-1000.0,0.00051377,14]
[330046066,1718967045540,-500.0,0.00051383,120]
[330046067,1718967045549,-500.0,0.00051383,120]
[330046068,1718967045558,-500.0,0.00051383,120]
[330046069,1718967045568,-500.0,0.00051383,120]
[330046070,1718967045577,-508.57,0.00051383,120]
[330046071,1718967045586,-500.0,0.00051383,120]
[330046072,1718967045596,-500.0,0.00051383,120]
[330046073,1718967045605,-500.0,0.00051383,120]
[330046074,1718967045615,-500.0,0.00051383,120]
[330046075,1718967045624,-500.0,0.00051383,120]
[330046076,1718967045633,-500.0,0.00051383,120]
[330046077,1718967045643,-343.72,0.00051383,120]
[330046078,1718967045652,-1000.0,0.00051452,14]
[330046079,1718967045662,-164.13841529,0.00051482,60]
[330046080,1718967045671,-1376.05250197,0.00051501,60]
[330046081,1718967045680,-151.0,0.00051506,14]
[330046082,1718967045690,-1500.0,0.00051506,120]
[330046083,1718967045768,-969.7239761,0.00051514,60]
[330046084,1718967045778,-484.82700371,0.00051521,14]
[330046085,1718967045788,-681.8405,0.0005155,120]
[330046086,1718967045797,-969.7239761,0.00051577,60]
[330046087,1718967045807,-9995.03511897,0.0005158,120]
[330046088,1718967045817,-5000.0,0.0005158,120]
[330046089,1718967045827,-5000.0,0.0005158,120]
[330046090,1718967045837,-969.7239761,0.00051612,60]
[330046091,1718967045847,-150.96651356,0.00051626,60]
[330046092,1718967045856,-1000.0,0.00051652,14]
[330046093,1718967045866,-335.3,0.00051657,60]
[330046094,1718967045875,-152.0,0.00051657,60]
[330046095,1718967045886,-969.7239761,0.00051661,60]
[330046096,1718967045896,-1000.0,0.00051683,14]
[330046097,1718967045906,-150.96651356,0.00051734,60]
[330046098,1718967045916,-934.31504815,0.00051744,60]
[330046099,1718967045925,-1500.0,0.0005178,120]
[330046100,1718967045934,-594.0,0.000518,30]
[330046101,1718967045944,-3170.41261406,0.000519,60]
[330046102,1718967045954,-934.31504815,0.00051909,60]
[330046103,1718967045964,-154.24002068,0.0005195,60]
[330046104,1718967045973,-934.31504815,0.00051955,60]
[330046105,1718967045983,-270.99696494,0.00052,120]
[330046106,1718967045993,-57781.19715545,0.00052,120]
[330046107,1718967046004,-10303.35,0.00052,120]
[330046108,1718967046013,-200.0,0.00052,45]
[330046109,1718967046022,-151.0,0.00052,14]
[330046110,1718967046030,-940.026339,0.00052,14]
[330046111,1718967046040,-940.026339,0.00052,14]
[330046112,1718967046049,-3000.39,0.00052,30]
[330046113,1718967046059,-4008.4,0.00052,30]
[330046114,1718967046069,-660.996608,0.00052,14]
[330046115,1718967046079,-660.996608,0.00052,14]
[330046116,1718967046089,-1137.036381,0.00052,14]
[330046117,1718967046098,-1137.036381,0.00052,14]
[330046118,1718967046108,-153.0,0.00052007,30]
[330046119,1718967046118,-153.0,0.00052007,30]
[330046120,1718967046126,-153.0,0.00052007,30]
[330046121,1718967046136,-153.0,0.00052007,30]
[330046122,1718967046145,-153.0,0.00052007,30]
[330046123,1718967046154,-153.0,0.00052007,30]
[330046124,1718967046164,-153.0,0.00052007,30]
[330046125,1718967046173,-153.0,0.00052007,30]
[330046126,1718967046182,-153.0,0.00052007,30]
[330046127,1718967046191,-153.0,0.00052007,30]
[330046128,1718967046200,-153.0,0.00052007,30]
[330046129,1718967046210,-153.0,0.00052007,30]
[330046130,1718967046218,-153.0,0.00052007,30]
[330046131,1718967046228,-153.0,0.00052007,30]
[330046132,1718967046237,-153.0,0.00052007,30]
[330046133,1718967046246,-153.0,0.00052007,30]
[330046134,1718967046257,-153.0,0.00052007,30]
[330046135,1718967046266,-153.0,0.00052007,30]
[330046136,1718967046276,-153.0,0.00052007,30]
[330046137,1718967046286,-153.0,0.00052007,30]
[330046138,1718967046296,-153.0,0.00052007,30]
[330046139,1718967046305,-153.0,0.00052007,30]
[330046140,1718967046315,-153.0,0.00052007,30]
[330046141,1718967046324,-153.0,0.00052007,30]
[330046142,1718967046334,-153.0,0.00052007,30]
[330046143,1718967046344,-153.0,0.00052007,30]
[330046144,1718967046358,-153.0,0.00052007,30]
[330046145,1718967046368,-153.0,0.00052007,30]
[330046146,1718967046378,-153.0,0.00052007,30]
[330046147,1718967046388,-153.0,0.00052007,30]
[330046148,1718967046397,-4127.79963663,0.00052011,120]
[330046149,1718967046407,-164.13841529,0.00052027,60]
[330046150,1718967046417,-1000.0,0.00052033,14]
[330046151,1718967046427,-28673.50603834,0.0005205,2]
[330046152,1718967046437,-500.0,0.00052054,120]
[330046153,1718967046448,-500.0,0.00052054,120]
[330046154,1718967046457,-500.0,0.00052054,120]
[330046155,1718967046467,-500.0,0.00052054,120]
[330046156,1718967046477,-500.0,0.00052054,120]
[330046157,1718967046487,-502.67256663,0.00052054,120]
[330046158,1718967046496,-500.0,0.00052054,120]
[330046159,1718967046506,-500.0,0.00052054,120]
[330046160,1718967046515,-525.36894907,0.00052054,120]
[330046161,1718967046524,-540.44613334,0.00052054,120]
[330046162,1718967046534,-500.0,0.00052054,120]
[330046163,1718967046543,-500.0,0.00052054,120]
[330046164,1718967046553,-500.0,0.00052054,120]
[330046165,1718967046563,-500.0,0.00052054,120]
[330046166,1718967046573,-500.0,0.00052054,120]
[330046167,1718967046583,-500.0,0.00052054,120]
[330046168,1718967046592,-501.04851248,0.00052054,120]
[330046169,1718967046602,-500.0,0.00052054,2]
[330046170,1718967046612,-500.0,0.00052054,120]
[330046171,1718967046622,-201.80258211,0.00052054,7]
[330046172,1718967046631,-500.0,0.00052054,120]
[330046173,1718967046641,-500.0,0.00052054,120]
[330046174,1718967046651,-500.0,0.00052054,120]
[330046175,1718967046660,-500.10429129,0.00052054,120]
[330046176,1718967046670,-668.89,0.00052054,120]
[330046177,1718967046680,-500.0,0.00052054,120]
[330046178,1718967046691,-500.0,0.00052054,120]
[330046179,1718967046700,-502.16440813,0.00052054,120]
[330046180,1718967046710,-500.0,0.00052054,120]
[330046181,1718967046720,-500.0,0.00052054,120]
[330046182,1718967046730,-500.0,0.00052054,120]
[330046183,1718967046740,-500.0,0.00052054,120]
[330046184,1718967046751,-500.0,0.00052054,120]
[330046185,1718967046761,-500.0,0.00052054,120]
[330046186,1718967046771,-500.0,0.00052054,120]
[330046187,1718967046781,-500.0,0.00052054,120]
[330046188,1718967046791,-500.7461977,0.00052054,120]
[330046189,1718967046801,-500.0,0.00052054,120]
[330046190,1718967046811,-500.0,0.00052054,120]
[330046191,1718967046820,-500.0,0.00052054,120]
[330046192,1718967046830,-500.0,0.00052054,120]
[330046193,1718967046839,-509.22288165,0.00052054,120]
[330046194,1718967046849,-501.42860914,0.00052054,120]
[330046195,1718967046859,-537.28984363,0.00052054,120]
[330046196,1718967046868,-547.35105508,0.00052054,120]
[330046199,1718967046878,-500.0,0.00052054,7]
[330046201,1718967046887,-653.36,0.00052054,120]
[330046203,1718967046897,-500.0,0.00052054,120]
[330046205,1718967046907,-500.0,0.00052054,120]
[330046207,1718967046916,-500.0,0.00052054,120]
[330046209,1718967046925,-500.0,0.00052054,120]
[330046211,1718967046934,-500.0,0.00052054,120]
[330046213,1718967046944,-500.0,0.00052054,120]
[330046215,1718967046953,-1252.29,0.00052054,120]
[330046217,1718967046963,-500.0,0.00052054,120]
[330046219,1718967046972,-500.0,0.00052054,120]
[330046221,1718967046982,-500.0,0.00052054,120]
[330046223,1718967046991,-500.0,0.00052054,120]
[330046225,1718967047000,-343.08119129,0.00052054,120]
[330046227,1718967047010,-500.0,0.00052054,120]
[330046229,1718967047020,-500.0,0.00052054,120]
[330046231,1718967047030,-346.75449246,0.00052054,120]
[330046233,1718967047039,-500.0,0.00052054,120]
[330046242,1718967047116,-500.0,0.00052054,120]
[330046244,1718967047127,-500.0,0.00052054,120]
[330046246,1718967047137,-500.0,0.00052054,120]
[330046248,1718967047146,-500.0,0.00052054,120]
[330046249,1718967047155,-500.0,0.00052054,120]
[330046250,1718967047165,-500.0,0.00052054,120]
[330046251,1718967047174,-500.0,0.00052054,120]
[330046252,1718967047184,-500.0,0.00052054,120]
[330046253,1718967047194,-500.0,0.00052054,120]
[330046254,1718967047204,-500.0,0.00052054,120]
[330046255,1718967047214,-500.0,0.00052054,120]
[330046256,1718967047224,-500.0,0.00052054,120]
[330046257,1718967047233,-500.0,0.00052054,120]
[330046258,1718967047243,-503.75681152,0.00052054,120]
[330046259,1718967047253,-500.0,0.00052054,120]
[330046260,1718967047263,-500.0,0.00052054,120]
[330046261,1718967047273,-500.0,0.00052054,120]
[330046262,1718967047283,-500.0,0.00052054,120]
[330046263,1718967047292,-500.0,0.00052054,120]
[330046264,1718967047302,-500.0,0.00052054,120]
[330046265,1718967047311,-500.0,0.00052054,120]
[330046266,1718967047321,-500.0,0.00052054,120]
[330046267,1718967047331,-500.0,0.00052054,120]
[330046268,1718967047346,-500.0,0.00052054,120]
[330046269,1718967047356,-640.24,0.00052054,120]
[330046270,1718967047367,-500.0,0.00052054,120]
[330046271,1718967047377,-1350.87,0.00052054,120]
[330046272,1718967047389,-500.0,0.00052054,120]
[330046273,1718967047398,-633.94333589,0.00052054,120]
[330046274,1718967047408,-668.42,0.00052054,120]
[330046275,1718967047418,-500.0,0.00052054,120]
[330046276,1718967047428,-940.026339,0.00052054,14]
[330046277,1718967047438,-940.026339,0.00052054,14]
[330046278,1718967047447,-940.026339,0.00052054,14]
[330046279,1718967047457,-496.5923072,0.00052054,120]
[330046280,1718967047467,-940.026339,0.00052054,14]
[330046281,1718967047476,-507.91167417,0.00052054,120]
[330046282,1718967047485,-940.026339,0.00052054,14]
[330046283,1718967047495,-500.0,0.00052054,120]
[330046284,1718967047505,-940.026339,0.00052054,14]
[330046285,1718967047514,-500.0,0.00052054,120]
[330046286,1718967047524,-500.0,0.00052054,120]
[330046287,1718967047533,-459.26904403,0.00052054,120]
[330046288,1718967047543,-500.0,0.00052054,120]
[330046289,1718967047552,-500.0,0.00052054,120]
[330046290,1718967047561,-500.0,0.00052054,120]
[330046291,1718967047571,-500.0,0.00052054,120]
[330046292,1718967047580,-500.0,0.00052054,120]
[330046293,1718967047590,-500.0,0.00052054,120]
[330046294,1718967047600,-500.0,0.00052054,120]
[330046295,1718967047610,-500.0,0.00052054,120]
[330046296,1718967047619,-500.0,0.00052054,120]
[330046298,1718967047628,-766.51,0.00052054,120]
[330046300,1718967047637,-519.13004257,0.00052054,120]
[330046302,1718967047647,-500.0,0.00052054,120]
[330046303,1718967047656,-500.0,0.00052054,120]
[330046304,1718967047666,-500.0,0.00052054,120]
[330046305,1718967047675,-500.0,0.00052054,120]
[330046306,1718967047685,-500.0,0.00052054,120]
[330046307,1718967047694,-500.0,0.00052054,120]
[330046308,1718967047704,-500.0,0.00052054,120]
[330046309,1718967047713,-500.0,0.00052054,120]
[330046310,1718967047723,-500.0,0.00052054,120]
[330046311,1718967047732,-500.0,0.00052054,120]
[330046312,1718967047741,-500.0,0.00052054,120]
[330046313,1718967047750,-500.0,0.00052054,120]
[330046314,1718967047760,-500.0,0.00052054,120]
[330046315,1718967047769,-500.0,0.00052054,120]
[330046316,1718967047778,-500.0,0.00052054,120]
[330046317,1718967047787,-500.0,0.00052054,120]
[330046318,1718967047797,-500.0,0.00052054,120]
[330046319,1718967047807,-500.0,0.00052054,120]
[330046320,1718967047816,-500.0,0.00052054,120]
[330046321,1718967047826,-500.0,0.00052054,120]
[330046322,1718967047835,-500.0,0.00052054,120]
[330046323,1718967047844,-500.0,0.00052054,120]
[330046324,1718967047854,-526.07248812,0.00052054,120]
[330046325,1718967047863,-500.0,0.00052054,120]
[330046326,1718967047872,-500.0,0.00052054,120]
[330046327,1718967047882,-500.0,0.00052054,120]
[330046328,1718967047891,-500.0,0.00052054,120]
[330046329,1718967047901,-500.0,0.00052054,120]
[330046330,1718967047910,-500.0,0.00052054,120]
[330046331,1718967047919,-500.0,0.00052054,120]
[330046332,1718967047929,-500.0,0.00052054,120]
[330046333,1718967047939,-500.0,0.00052054,120]
[330046334,1718967047948,-500.0,0.00052054,120]
[330046335,1718967047958,-411.6235829,0.00052054,120]
[330046336,1718967047967,-500.0,0.00052054,120]
[330046337,1718967047976,-500.0,0.00052054,120]
[330046338,1718967047986,-500.0,0.00052054,120]
[330046339,1718967047995,-500.0,0.00052054,120]
[330046340,1718967048005,-500.0,0.00052054,120]
[330046341,1718967048014,-500.0,0.00052054,120]
[330046342,1718967048026,-500.0,0.00052054,120]
[330046343,1718967048035,-500.0,0.00052054,120]
[330046344,1718967048044,-500.0,0.00052054,120]
[330046345,1718967048053,-537.24371905,0.00052054,120]
[330046346,1718967048062,-1314.13,0.00052054,120]
[330046347,1718967048072,-500.0,0.00052054,120]
[330046348,1718967048081,-500.0,0.00052054,120]
[330046349,1718967048091,-599.00344374,0.00052054,120]
[330046350,1718967048100,-500.0,0.00052054,120]
[330046351,1718967048110,-506.72102544,0.00052054,120]
[330046352,1718967048119,-500.0,0.00052054,2]
[330046353,1718967048128,-505.12211671,0.00052054,120]
[330046354,1718967048138,-506.76397227,0.00052054,120]
[330046355,1718967048148,-152.0,0.00052054,2]
[330046356,1718967048158,-500.0,0.00052054,120]
[330046357,1718967048167,-500.0,0.00052054,120]
[330046358,1718967048177,-442.5815525,0.00052054,120]
[330046359,1718967048187,-500.0,0.00052054,120]
[330046360,1718967048197,-500.0,0.00052054,120]
[330046361,1718967048207,-500.0,0.00052054,2]
[330046362,1718967048218,-500.0,0.00052054,120]
[330046363,1718967048227,-502.91498116,0.00052054,120]
[330046364,1718967048236,-500.0,0.00052054,120]
[330046365,1718967048246,-500.0,0.00052054,120]
[330046366,1718967048259,-500.0,0.00052054,120]
[330046367,1718967048269,-500.0,0.00052054,120]
[330046368,1718967048279,-500.77693653,0.00052054,120]
[330046369,1718967048289,-523.7819815,0.00052054,120]
[330046370,1718967048364,-503.27934595,0.00052054,120]
[330046371,1718967048374,-443.0871927,0.00052054,120]
[330046372,1718967048384,-1313.73,0.00052054,120]
[330046373,1718967048394,-500.0,0.00052054,120]
[330046374,1718967048404,-500.0,0.00052054,120]
[330046375,1718967048413,-520.47755439,0.00052054,120]
[330046376,1718967048424,-500.0,0.00052054,120]
[330046377,1718967048434,-1528.79,0.00052054,120]
[330046378,1718967048444,-500.0,0.00052054,120]
[330046379,1718967048454,-500.0,0.00052054,120]
[330046380,1718967048463,-504.63203588,0.00052054,120]
[330046381,1718967048473,-500.0,0.00052054,120]
[330046382,1718967048482,-524.54766491,0.00052054,120]
[330046383,1718967048492,-852.31,0.00052054,120]
[330046384,1718967048501,-500.0,0.00052054,120]
[330046385,1718967048513,-653.17,0.00052054,120]
[330046386,1718967048524,-404.74010158,0.00052054,120]
[330046387,1718967048533,-502.10428107,0.00052054,120]
[330046388,1718967048542,-500.0,0.00052054,120]
[330046389,1718967048552,-500.0,0.00052054,120]
[330046390,1718967048561,-500.0,0.00052054,120]
[330046391,1718967048570,-500.0,0.00052054,120]
[330046392,1718967048580,-536.77,0.00052054,120]
[330046393,1718967048590,-500.0,0.00052054,120]
[330046394,1718967048599,-506.13954686,0.00052054,120]
[330046395,1718967048609,-500.0,0.00052054,120]
[330046396,1718967048618,-500.0,0.00052054,120]
[330046397,1718967048628,-500.0,0.00052054,120]
[330046398,1718967048638,-500.0,0.00052054,120]
[330046399,1718967048647,-500.0,0.00052054,120]
[330046400,1718967048657,-521.1,0.00052054,120]
[330046401,1718967048666,-500.0,0.00052054,120]
[330046402,1718967048675,-500.0,0.00052054,120]
[330046403,1718967048684,-500.0,0.00052054,120]
[330046404,1718967048694,-500.0,0.00052054,120]
[330046405,1718967048703,-500.0,0.00052054,120]
[330046406,1718967048712,-513.04509747,0.00052054,120]
[330046407,1718967048722,-500.0,0.00052054,120]
[330046408,1718967048731,-500.0,0.00052054,120]
[330046409,1718967048740,-511.31664789,0.00052054,120]
[330046410,1718967048749,-238.37479126,0.00052054,120]
[330046411,1718967048759,-2012.16,0.00052054,120]
[330046412,1718967048768,-500.0,0.00052054,120]
[330046413,1718967048777,-500.0,0.00052054,120]
[330046414,1718967048786,-551.87,0.00052054,120]
[330046415,1718967048795,-500.0,0.00052054,120]
[330046416,1718967048804,-500.0,0.00052054,120]
[330046417,1718967048813,-521.12488463,0.00052054,120]
[330046418,1718967048822,-502.01160059,0.00052054,120]
[330046419,1718967048832,-500.0,0.00052054,120]
[330046420,1718967048841,-500.0,0.00052054,120]
[330046421,1718967048850,-500.0,0.00052054,120]
[330046422,1718967048860,-501.08028184,0.00052054,120]
[330046423,1718967048869,-500.0,0.00052054,120]
[330046424,1718967048879,-568.70913637,0.00052054,120]
[330046425,1718967048889,-868.16,0.00052054,120]
[330046426,1718967048898,-500.0,0.00052054,120]
[330046427,1718967048907,-548.06124739,0.00052054,120]
[330046428,1718967048917,-1196.1,0.00052054,120]
[330046429,1718967048926,-500.0,0.00052054,120]
[330046430,1718967048936,-500.0,0.00052054,120]
[330046431,1718967048946,-500.0,0.00052054,120]
[330046432,1718967048955,-500.0,0.00052054,120]
[330046433,1718967048965,-522.95,0.00052054,120]
[330046434,1718967048974,-500.0,0.00052054,120]
[330046435,1718967048985,-500.0,0.00052054,120]
[330046436,1718967048995,-500.0,0.00052054,7]
[330046437,1718967049004,-498.25541486,0.00052054,120]
[330046438,1718967049014,-500.0,0.00052054,120]
[330046439,1718967049025,-500.0,0.00052054,120]
[330046440,1718967049034,-500.0,0.00052054,30]
[330046441,1718967049044,-500.0,0.00052054,120]
[330046442,1718967049054,-500.0,0.00052054,120]
[330046443,1718967049063,-500.0,0.00052054,120]
[330046444,1718967049072,-514.34431085,0.00052054,120]
[330046445,1718967049082,-500.0,0.00052054,120]
[330046446,1718967049092,-500.0,0.00052054,120]
[330046447,1718967049101,-624.91,0.00052054,120]
[330046449,1718967049110,-500.0,0.00052054,120]
[330046451,1718967049121,-500.0,0.00052054,120]
[330046453,1718967049130,-525.40343299,0.00052054,120]
[330046455,1718967049140,-500.0,0.00052054,120]
[330046457,1718967049150,-500.0,0.00052054,120]
[330046459,1718967049160,-500.0,0.00052054,120]
[330046461,1718967049169,-500.0,0.00052054,120]
[330046462,1718967049179,-500.0,0.00052054,120]
[330046463,1718967049187,-500.0,0.00052054,120]
[330046464,1718967049196,-500.0,0.00052054,120]
[330046465,1718967049205,-500.0,0.00052054,120]
[330046466,1718967049215,-508.95639627,0.00052054,120]
[330046467,1718967049225,-504.45857572,0.00052054,120]
[330046468,1718967049234,-500.0,0.00052054,120]
[330046469,1718967049243,-500.0,0.00052054,120]
[330046470,1718967049253,-2355.84,0.00052054,120]
[330046471,1718967049262,-500.0,0.00052054,120]
[330046472,1718967049272,-503.22267867,0.00052054,120]
[330046473,1718967049281,-536.09412772,0.00052054,120]
[330046474,1718967049291,-500.0,0.00052054,120]
[330046475,1718967049300,-500.67278414,0.00052054,20]
[330046476,1718967049309,-500.0,0.00052054,120]
[330046477,1718967049319,-2624.17,0.00052054,120]
[330046478,1718967049329,-520.99844231,0.00052054,120]
[330046479,1718967049339,-500.0,0.00052054,120]
[330046480,1718967049352,-500.0,0.00052054,120]
[330046481,1718967049361,-513.34835531,0.00052054,120]
[330046482,1718967049371,-500.0,0.00052054,120]
[330046483,1718967049381,-500.0,0.00052054,120]
[330046484,1718967049391,-500.0,0.00052054,120]
[330046485,1718967049401,-702.29,0.00052054,120]
[330046486,1718967049410,-954.72,0.00052054,120]
[330046487,1718967049420,-500.0,0.00052054,120]
[330046488,1718967049493,-500.0,0.00052054,120]
[330046489,1718967049506,-502.47608824,0.00052054,120]
[330046490,1718967049516,-500.0,0.00052054,120]
[330046491,1718967049525,-1448.23,0.00052054,120]
[330046492,1718967049535,-500.0,0.00052054,120]
[330046493,1718967049545,-500.0,0.00052054,120]
[330046494,1718967049554,-500.0,0.00052054,120]
[330046495,1718967049563,-532.36673158,0.00052054,120]
[330046496,1718967049573,-518.67724503,0.00052054,120]
[330046497,1718967049582,-502.21333375,0.00052054,120]
[330046498,1718967049591,-250.0,0.00052054,120]
[330046499,1718967049601,-500.0,0.00052054,120]
[330046500,1718967049611,-551.3835522,0.00052054,120]
[330046501,1718967049620,-511.71749445,0.00052054,120]
[330046502,1718967049629,-500.0,0.00052054,120]
[330046503,1718967049639,-541.87432306,0.00052054,120]
[330046504,1718967049648,-504.7669778,0.00052054,120]
[330046505,1718967049658,-500.0,0.00052054,120]
[330046506,1718967049667,-500.0,0.00052054,120]
[330046507,1718967049677,-500.0,0.00052054,120]
[330046508,1718967049686,-2298.16,0.00052054,120]
[330046509,1718967049695,-500.0,0.00052054,120]
[330046510,1718967049705,-500.0,0.00052054,120]
[330046511,1718967049715,-502.2485112,0.00052054,120]
[330046512,1718967049724,-500.0,0.00052054,120]
[330046513,1718967049733,-500.0,0.00052054,120]
[330046514,1718967049743,-613.540955,0.00052054,120]
[330046515,1718967049752,-510.68339046,0.00052054,120]
[330046516,1718967049761,-500.0,0.00052054,120]
[330046517,1718967049770,-842.28,0.00052054,120]
[330046518,1718967049779,-500.0,0.00052054,120]
[330046519,1718967049789,-500.0,0.00052054,120]
[330046520,1718967049798,-500.0,0.00052054,120]
[330046521,1718967049808,-500.0,0.00052054,120]
[330046522,1718967049818,-500.0,0.00052054,120]
[330046523,1718967049827,-500.0,0.00052054,120]
[330046524,1718967049836,-500.0,0.00052054,120]
[330046525,1718967049846,-500.0,0.00052054,120]
[330046526,1718967049855,-500.0,0.00052054,120]
[330046527,1718967049865,-500.0,0.00052054,120]
[330046528,1718967049875,-508.43498781,0.00052054,120]
[330046529,1718967049885,-500.0,0.00052054,120]
[330046530,1718967049894,-500.0,0.00052054,120]
[330046531,1718967049903,-500.0,0.00052054,120]
[330046532,1718967049913,-500.0,0.00052054,120]
[330046533,1718967049923,-500.0,0.00052054,120]
[330046534,1718967049933,-500.0,0.00052054,120]
[330046535,1718967049942,-500.0,0.00052054,120]
[330046536,1718967049952,-500.0,0.00052054,120]
[330046537,1718967049962,-502.71648711,0.00052054,120]
[330046538,1718967049972,-500.0,0.00052054,120]
[330046539,1718967049981,-500.0,0.00052054,120]
[330046540,1718967049991,-500.0,0.00052054,120]
[330046541,1718967050000,-500.0,0.00052054,120]
[330046542,1718967050010,-330.85818122,0.00052054,120]
[330046543,1718967050019,-500.0,0.00052054,120]
[330046544,1718967050028,-500.0,0.00052054,120]
[330046545,1718967050036,-500.0,0.00052054,120]
[330046546,1718967050046,-500.0,0.00052054,120]
[330046547,1718967050055,-500.0,0.00052054,120]
[330046548,1718967050065,-500.0,0.00052054,120]
[330046549,1718967050075,-500.0,0.00052054,120]
[330046550,1718967050084,-500.0,0.00052054,120]
[330046551,1718967050094,-500.0,0.00052054,120]
[330046552,1718967050104,-500.0,0.00052054,120]
[330046553,1718967050113,-471.26378766,0.00052054,120]
[330046554,1718967050123,-1000.0,0.00052054,120]
[330046555,1718967050132,-1859.55,0.00052054,120]
[330046556,1718967050143,-453.47438126,0.00052054,120]
[330046557,1718967050152,-502.78904314,0.00052054,30]
[330046558,1718967050161,-500.0,0.00052054,120]
[330046559,1718967050171,-500.0,0.00052054,120]
[330046560,1718967050181,-500.0,0.00052054,120]
[330046561,1718967050191,-586.91,0.00052054,120]
[330046562,1718967050200,-586.91,0.00052054,120]
[330046563,1718967050209,-586.91,0.00052054,120]
[330046564,1718967050219,-586.91,0.00052054,120]
[330046565,1718967050228,-586.91,0.00052054,120]
[330046566,1718967050237,-586.91,0.00052054,120]
[330046567,1718967050247,-586.91,0.00052054,120]
[330046568,1718967050257,-586.91,0.00052054,120]
[330046569,1718967050266,-586.91,0.00052054,120]
[330046570,1718967050276,-586.91,0.00052054,120]
[330046571,1718967050285,-586.91,0.00052054,120]
[330046572,1718967050294,-500.58414353,0.00052054,120]
[330046573,1718967050304,-586.91,0.00052054,120]
[330046574,1718967050314,-586.91,0.00052054,120]
[330046575,1718967050323,-586.91,0.00052054,120]
[330046576,1718967050332,-586.91,0.00052054,120]
[330046577,1718967050343,-586.91,0.00052054,120]
[330046578,1718967050357,-586.91,0.00052054,120]
[330046579,1718967050368,-586.91,0.00052054,120]
[330046580,1718967050378,-630.25167425,0.00052054,120]